[Event "Late-Titled-Tuesday-Blitz-April-23-2024"]
[Site "Chess.com"]
[Date "2024.04.23"]
[Round "9"]
[White "Casablanca"]
[Black "emeli_chess"]
[Result "1-0"]
[WhiteElo "2704"]
[BlackElo "2479"]
[TimeControl "180+1"]
[EndTime "15:45:11 PDT"]
[Termination "Casablanca won on time"]

1. c4 {[%clk 0:03:00.9]} 1... e5 {[%clk 0:02:59.3]} 2. g3 {[%clk 0:03:00.2]}
2... d6 {[%clk 0:02:58.6]} 3. Bg2 {[%clk 0:02:56.7]} 3... f5 {[%clk 0:02:58.5]}
4. Nc3 {[%clk 0:02:56.8]} 4... Nf6 {[%clk 0:02:58.1]} 5. e3 {[%clk 0:02:57.5]}
5... Be7 {[%clk 0:02:57.3]} 6. Nge2 {[%clk 0:02:57.9]} 6... O-O {[%clk
0:02:56.9]} 7. d4 {[%clk 0:02:58.5]} 7... c6 {[%clk 0:02:44.4]} 8. O-O {[%clk
0:02:58.3]} 8... Be6 {[%clk 0:02:43.2]} 9. b3 {[%clk 0:02:54.7]} 9... Nbd7
{[%clk 0:02:41.1]} 10. dxe5 {[%clk 0:02:53.6]} 10... dxe5 {[%clk 0:02:35.5]} 11.
Qc2 {[%clk 0:02:52.8]} 11... Nc5 {[%clk 0:02:29.3]} 12. Rd1 {[%clk 0:02:52.6]}
12... Qc7 {[%clk 0:02:28.6]} 13. b4 {[%clk 0:02:37.7]} 13... Nce4 {[%clk
0:02:26.5]} 14. a3 {[%clk 0:02:37.9]} 14... Ng5 {[%clk 0:01:53.3]} 15. h4 {[%clk
0:02:28.5]} 15... Nf7 {[%clk 0:01:51.3]} 16. c5 {[%clk 0:02:25.1]} 16... Rfd8
{[%clk 0:01:43.4]} 17. Bb2 {[%clk 0:02:24.7]} 17... Rxd1+ {[%clk 0:01:37.2]} 18.
Rxd1 {[%clk 0:02:25.6]} 18... Rd8 {[%clk 0:01:36.8]} 19. Rxd8+ {[%clk
0:02:25.5]} 19... Qxd8 {[%clk 0:01:35.7]} 20. e4 {[%clk 0:02:07.4]} 20... Qd7
{[%clk 0:00:57]} 21. exf5 {[%clk 0:02:02.7]} 21... Bxf5 {[%clk 0:00:56.9]} 22.
Ne4 {[%clk 0:02:03.4]} 22... Nxe4 {[%clk 0:00:54.4]} 23. Bxe4 {[%clk 0:02:04.3]}
23... Bxe4 {[%clk 0:00:54.3]} 24. Qxe4 {[%clk 0:02:05.2]} 24... Qd1+ {[%clk
0:00:48.3]} 25. Kg2 {[%clk 0:02:01.2]} 25... Qd5 {[%clk 0:00:46.9]} 26. Qxd5
{[%clk 0:01:59.6]} 26... cxd5 {[%clk 0:00:46.8]} 27. Nc3 {[%clk 0:02:00.5]}
27... d4 {[%clk 0:00:43.7]} 28. Nd5 {[%clk 0:01:58.4]} 28... Bd8 {[%clk
0:00:42.5]} 29. Kf3 {[%clk 0:01:59]} 29... Nh6 {[%clk 0:00:34.2]} 30. Ke4 {[%clk
0:01:56.1]} 30... Ng4 {[%clk 0:00:34.3]} 31. f3 {[%clk 0:01:56.7]} 31... Nf2+
{[%clk 0:00:29.3]} 32. Kxe5 {[%clk 0:01:34.7]} 32... Nd3+ {[%clk 0:00:28.4]} 33.
Kxd4 {[%clk 0:01:35.4]} 33... Nxb2 {[%clk 0:00:28.7]} 34. b5 {[%clk 0:01:36.3]}
34... Kf7 {[%clk 0:00:24.1]} 35. c6 {[%clk 0:01:36.6]} 35... bxc6 {[%clk
0:00:23.9]} 36. bxc6 {[%clk 0:01:37.5]} 36... Na4 {[%clk 0:00:07.9]} 37. c7
{[%clk 0:01:37.9]} 37... Bxc7 {[%clk 0:00:08.1]} 38. Nxc7 {[%clk 0:01:38.8]}
38... g6 {[%clk 0:00:06.6]} 39. Nb5 {[%clk 0:01:29.8]} 39... a6 {[%clk
0:00:06.1]} 40. Nc7 {[%clk 0:01:29.7]} 40... a5 {[%clk 0:00:05.7]} 41. Nb5
{[%clk 0:01:27.3]} 41... Nb6 {[%clk 0:00:05.3]} 42. Nd6+ {[%clk 0:01:27.6]}
42... Ke6 {[%clk 0:00:05.3]} 43. Nc4 {[%clk 0:01:28.5]} 43... Nxc4 {[%clk
0:00:03.8]} 44. Kxc4 {[%clk 0:01:29.4]} 1-0

[Event "Late-Titled-Tuesday-Blitz-April-23-2024"]
[Site "Chess.com"]
[Date "2024.04.23"]
[Round "9"]
[White "Oleg_Papayan"]
[Black "Polish_fighter3000"]
[Result "0-1"]
[WhiteElo "2644"]
[BlackElo "3081"]
[TimeControl "180+1"]
[EndTime "15:45:11 PDT"]
[Termination "Polish_fighter3000 won by resignation"]

1. e4 {[%clk 0:03:00.9]} 1... Nf6 {[%clk 0:03:00.9]} 2. e5 {[%clk 0:03:00]} 2...
Ng8 {[%clk 0:03:01.4]} 3. Nc3 {[%clk 0:03:00.3]} 3... d6 {[%clk 0:03:01.7]} 4.
exd6 {[%clk 0:03:00.6]} 4... exd6 {[%clk 0:03:01.3]} 5. d4 {[%clk 0:03:01.3]}
5... Nf6 {[%clk 0:02:58.3]} 6. Nf3 {[%clk 0:03:01.7]} 6... Be7 {[%clk
0:02:58.7]} 7. Bd3 {[%clk 0:03:01.8]} 7... O-O {[%clk 0:02:59.1]} 8. h3 {[%clk
0:03:02.3]} 8... Re8 {[%clk 0:02:59.4]} 9. O-O {[%clk 0:03:02.7]} 9... Nbd7
{[%clk 0:02:58.2]} 10. Bg5 {[%clk 0:03:02.5]} 10... b6 {[%clk 0:02:57.8]} 11.
Re1 {[%clk 0:03:02]} 11... Bb7 {[%clk 0:02:58]} 12. d5 {[%clk 0:02:54.3]} 12...
h6 {[%clk 0:02:56.4]} 13. Bxf6 {[%clk 0:02:50]} 13... Bxf6 {[%clk 0:02:56.7]}
14. Bb5 {[%clk 0:02:46.4]} 14... Bxc3 {[%clk 0:02:48]} 15. Rxe8+ {[%clk
0:02:44.5]} 15... Qxe8 {[%clk 0:02:47.5]} 16. bxc3 {[%clk 0:02:45.4]} 16... a6
{[%clk 0:02:46.9]} 17. Bxd7 {[%clk 0:02:41.6]} 17... Qxd7 {[%clk 0:02:47.8]} 18.
c4 {[%clk 0:02:41.6]} 18... Re8 {[%clk 0:02:34.2]} 19. Nd4 {[%clk 0:02:38.2]}
19... Qe7 {[%clk 0:02:24.8]} 20. Qd3 {[%clk 0:02:35.5]} 20... Bc8 {[%clk
0:02:23.3]} 21. Rd1 {[%clk 0:02:20.6]} 21... Bd7 {[%clk 0:02:22.9]} 22. Rd2
{[%clk 0:02:19.4]} 22... Qe1+ {[%clk 0:02:12.6]} 23. Kh2 {[%clk 0:02:19.1]}
23... Ba4 {[%clk 0:01:48.9]} 24. c3 {[%clk 0:01:59.2]} 24... g6 {[%clk 0:01:38]}
25. Re2 {[%clk 0:01:40.7]} 25... Rxe2 {[%clk 0:01:36.7]} 26. Nxe2 {[%clk
0:01:41.6]} 26... Qxf2 {[%clk 0:01:36]} 27. Nd4 {[%clk 0:01:33.7]} 27... Qxa2
{[%clk 0:01:29.8]} 28. Qe3 {[%clk 0:01:31.5]} 28... Qxc4 {[%clk 0:01:29.1]} 29.
h4 {[%clk 0:01:19.6]} 29... h5 {[%clk 0:01:15.9]} 30. Nf3 {[%clk 0:01:11]} 30...
Qxd5 {[%clk 0:01:14.1]} 31. Qe7 {[%clk 0:01:07.2]} 31... Qc4 {[%clk 0:01:10.1]}
32. Ng5 {[%clk 0:00:42.6]} 32... Bc6 {[%clk 0:01:00.5]} 33. g3 {[%clk
0:00:27.1]} 33... Qd5 {[%clk 0:00:56.8]} 0-1

[Event "Late-Titled-Tuesday-Blitz-April-23-2024"]
[Site "Chess.com"]
[Date "2024.04.23"]
[Round "9"]
[White "TheAlienParty"]
[Black "Bryanl106"]
[Result "0-1"]
[WhiteElo "2454"]
[BlackElo "2700"]
[TimeControl "180+1"]
[EndTime "15:45:35 PDT"]
[Termination "Bryanl106 won by checkmate"]

1. c4 {[%clk 0:02:59.4]} 1... Nf6 {[%clk 0:03:00.1]} 2. Nc3 {[%clk 0:02:58.1]}
2... e6 {[%clk 0:02:55.3]} 3. e4 {[%clk 0:02:54.6]} 3... d5 {[%clk 0:02:53.8]}
4. e5 {[%clk 0:02:53.3]} 4... d4 {[%clk 0:02:45.8]} 5. exf6 {[%clk 0:02:52.7]}
5... dxc3 {[%clk 0:02:46.2]} 6. bxc3 {[%clk 0:02:52]} 6... Qxf6 {[%clk
0:02:45.5]} 7. d4 {[%clk 0:02:51.8]} 7... h6 {[%clk 0:02:41.8]} 8. Nf3 {[%clk
0:02:50.7]} 8... c5 {[%clk 0:02:40.5]} 9. Be2 {[%clk 0:02:35.7]} 9... cxd4
{[%clk 0:02:39.3]} 10. cxd4 {[%clk 0:02:34.2]} 10... Bb4+ {[%clk 0:02:37.7]} 11.
Bd2 {[%clk 0:02:33.5]} 11... Bxd2+ {[%clk 0:02:38.2]} 12. Qxd2 {[%clk
0:02:33.3]} 12... O-O {[%clk 0:02:39.1]} 13. O-O {[%clk 0:02:32.6]} 13... Nc6
{[%clk 0:02:37.5]} 14. d5 {[%clk 0:02:31.2]} 14... exd5 {[%clk 0:02:33.1]} 15.
cxd5 {[%clk 0:02:31]} 15... Rd8 {[%clk 0:02:31.1]} 16. Rad1 {[%clk 0:02:28.3]}
16... Bg4 {[%clk 0:02:30.6]} 17. d6 {[%clk 0:01:53]} 17... Rd7 {[%clk
0:02:22.4]} 18. h3 {[%clk 0:01:28.3]} 18... Bh5 {[%clk 0:02:09.1]} 19. Qd5
{[%clk 0:01:18.7]} 19... Bxf3 {[%clk 0:01:58]} 20. Bxf3 {[%clk 0:01:15.2]} 20...
Rad8 {[%clk 0:01:57]} 21. Qb5 {[%clk 0:01:12]} 21... Ne5 {[%clk 0:01:55.5]} 22.
Bxb7 {[%clk 0:01:10.1]} 22... Rb8 {[%clk 0:01:53.5]} 23. Rd5 {[%clk 0:00:56.9]}
23... Rbxb7 {[%clk 0:01:48.8]} 24. Qc5 {[%clk 0:00:49.6]} 24... Ng6 {[%clk
0:01:46.8]} 25. Qc8+ {[%clk 0:00:49.1]} 25... Kh7 {[%clk 0:01:46.4]} 26. Rfd1
{[%clk 0:00:48.1]} 26... Nf4 {[%clk 0:01:45.7]} 27. R5d2 {[%clk 0:00:44.5]}
27... Qg6 {[%clk 0:01:44.6]} 28. Qc6 {[%clk 0:00:35.1]} 28... Rbc7 {[%clk
0:01:37]} 29. Qf3 {[%clk 0:00:20.5]} 29... Rc4 {[%clk 0:01:36.4]} 30. Kh2 {[%clk
0:00:18.3]} 30... Ne6 {[%clk 0:01:33.3]} 31. Qb3 {[%clk 0:00:16.4]} 31... Rh4
{[%clk 0:01:31.3]} 32. Qb5 {[%clk 0:00:14.9]} 32... Nf4 {[%clk 0:01:26.8]} 33.
f3 {[%clk 0:00:11.4]} 33... Rxd6 {[%clk 0:01:24.2]} 34. Qf1 {[%clk 0:00:04.1]}
34... Rxd2 {[%clk 0:01:17.6]} 35. Rxd2 {[%clk 0:00:04.1]} 35... Nh5 {[%clk
0:01:17.9]} 36. Rd5 {[%clk 0:00:02.1]} 36... Qg3+ {[%clk 0:01:17.3]} 37. Kh1
{[%clk 0:00:02]} 37... Nf4 {[%clk 0:01:15.4]} 38. Rd2 {[%clk 0:00:01.5]} 38...
Nxh3 {[%clk 0:01:13.4]} 39. gxh3 {[%clk 0:00:01.3]} 39... Rxh3+ {[%clk
0:01:14.3]} 40. Rh2 {[%clk 0:00:01.5]} 40... Rxh2# {[%clk 0:00:56.7]} 0-1

[Event "Late-Titled-Tuesday-Blitz-April-23-2024"]
[Site "Chess.com"]
[Date "2024.04.23"]
[Round "9"]
[White "jcmesafischer"]
[Black "Sesleria"]
[Result "1-0"]
[WhiteElo "2364"]
[BlackElo "2131"]
[TimeControl "180+1"]
[EndTime "15:45:35 PDT"]
[Termination "jcmesafischer won by checkmate"]

1. e4 {[%clk 0:02:52.6]} 1... c5 {[%clk 0:02:59.3]} 2. Nc3 {[%clk 0:02:41.3]}
2... Nc6 {[%clk 0:02:56.9]} 3. g3 {[%clk 0:02:33.4]} 3... g6 {[%clk 0:02:55.5]}
4. Bg2 {[%clk 0:02:32]} 4... Bg7 {[%clk 0:02:56.1]} 5. Nge2 {[%clk 0:02:23.7]}
5... d6 {[%clk 0:02:55.3]} 6. d3 {[%clk 0:02:22.2]} 6... h5 {[%clk 0:02:54.6]}
7. h3 {[%clk 0:02:13.1]} 7... h4 {[%clk 0:02:54.1]} 8. g4 {[%clk 0:02:12.8]}
8... e5 {[%clk 0:02:51.8]} 9. Be3 {[%clk 0:02:11.3]} 9... Nd4 {[%clk 0:02:51.3]}
10. Qd2 {[%clk 0:02:11.1]} 10... Be6 {[%clk 0:02:49.8]} 11. O-O {[%clk
0:02:10.1]} 11... a6 {[%clk 0:02:37.4]} 12. f4 {[%clk 0:02:08.4]} 12... exf4
{[%clk 0:02:35.7]} 13. Nxf4 {[%clk 0:02:09.3]} 13... Ne7 {[%clk 0:02:30.5]} 14.
Qf2 {[%clk 0:01:46.7]} 14... Qd7 {[%clk 0:02:19.4]} 15. Nxe6 {[%clk 0:01:35]}
15... Qxe6 {[%clk 0:02:18.2]} 16. e5 {[%clk 0:01:34.4]} 16... d5 {[%clk
0:02:09]} 17. Bxd4 {[%clk 0:01:03.2]} 17... cxd4 {[%clk 0:02:08.6]} 18. Qxd4
{[%clk 0:01:04.1]} 18... Bxe5 {[%clk 0:02:07.1]} 19. Qb4 {[%clk 0:01:01.5]}
19... O-O {[%clk 0:02:02.7]} 20. Rae1 {[%clk 0:00:53.2]} 20... Nc6 {[%clk
0:01:59.1]} 21. Qxb7 {[%clk 0:00:26.1]} 21... Rfb8 {[%clk 0:01:57.9]} 22. Qxf7+
{[%clk 0:00:26.5]} 22... Qxf7 {[%clk 0:01:57.2]} 23. Rxf7 {[%clk 0:00:27.4]}
23... Kxf7 {[%clk 0:01:55.4]} 24. Bxd5+ {[%clk 0:00:27.9]} 24... Kf6 {[%clk
0:01:52.2]} 25. Bxc6 {[%clk 0:00:28.8]} 25... Ra7 {[%clk 0:01:52.2]} 26. g5+
{[%clk 0:00:20.6]} 26... Ke6 {[%clk 0:01:48.6]} 27. d4 {[%clk 0:00:19.8]} 27...
Kd6 {[%clk 0:01:48.9]} 28. Rxe5 {[%clk 0:00:11.2]} 28... Kxc6 {[%clk 0:01:48.8]}
29. Re6+ {[%clk 0:00:11.3]} 29... Kb7 {[%clk 0:01:46.8]} 30. Rxg6 {[%clk
0:00:10.9]} 30... Rd8 {[%clk 0:01:46.1]} 31. Rg7+ {[%clk 0:00:10.5]} 31... Ka8
{[%clk 0:01:45.8]} 32. Rxa7+ {[%clk 0:00:11.4]} 32... Kxa7 {[%clk 0:01:46.3]}
33. Ne2 {[%clk 0:00:12]} 33... Rd5 {[%clk 0:01:45.3]} 34. Kf2 {[%clk 0:00:11.4]}
34... Rxg5 {[%clk 0:01:45.5]} 35. c4 {[%clk 0:00:11.5]} 35... Kb6 {[%clk
0:01:45.6]} 36. b4 {[%clk 0:00:11.1]} 36... Kc6 {[%clk 0:01:42.9]} 37. a3 {[%clk
0:00:11.4]} 37... Rf5+ {[%clk 0:01:40.2]} 38. Ke3 {[%clk 0:00:11.3]} 38... Rf1
{[%clk 0:01:36.2]} 39. d5+ {[%clk 0:00:10.5]} 39... Kd6 {[%clk 0:01:36]} 40. Nc3
{[%clk 0:00:11.1]} 40... Re1+ {[%clk 0:01:35.1]} 41. Kd4 {[%clk 0:00:11.4]}
41... Rg1 {[%clk 0:01:34.3]} 42. c5+ {[%clk 0:00:11.8]} 42... Kd7 {[%clk
0:01:34.3]} 43. c6+ {[%clk 0:00:11.3]} 43... Kc7 {[%clk 0:01:32.8]} 44. Kc5
{[%clk 0:00:11.5]} 44... Rg5 {[%clk 0:01:28.9]} 45. Ne4 {[%clk 0:00:11]} 45...
Re5 {[%clk 0:01:28.7]} 46. Nd2 {[%clk 0:00:10.6]} 46... Re2 {[%clk 0:01:28.2]}
47. Nc4 {[%clk 0:00:10.3]} 47... Rc2 {[%clk 0:01:22.6]} 48. d6+ {[%clk
0:00:10.3]} 48... Kd8 {[%clk 0:01:23]} 49. a4 {[%clk 0:00:09.8]} 49... Kc8
{[%clk 0:01:21.3]} 50. b5 {[%clk 0:00:10.1]} 50... Rc3 {[%clk 0:01:21.8]} 51.
bxa6 {[%clk 0:00:08]} 51... Rxh3 {[%clk 0:01:21.8]} 52. a7 {[%clk 0:00:08.2]}
52... Rb3 {[%clk 0:01:17.2]} 53. a8=Q+ {[%clk 0:00:08]} 53... Rb8 {[%clk
0:01:18.1]} 54. Nb6+ {[%clk 0:00:08.3]} 54... Kd8 {[%clk 0:01:18.1]} 55. Qxb8#
{[%clk 0:00:09.2]} 1-0

[Event "Late-Titled-Tuesday-Blitz-April-23-2024"]
[Site "Chess.com"]
[Date "2024.04.23"]
[Round "9"]
[White "A4RookA3"]
[Black "NM_Koval"]
[Result "1-0"]
[WhiteElo "2348"]
[BlackElo "2169"]
[TimeControl "180+1"]
[EndTime "15:45:39 PDT"]
[Termination "A4RookA3 won by resignation"]

1. Nc3 {[%clk 0:02:57.5]} 1... c5 {[%clk 0:02:59.5]} 2. Nf3 {[%clk 0:02:54.4]}
2... g6 {[%clk 0:02:58.2]} 3. d4 {[%clk 0:02:52.8]} 3... cxd4 {[%clk 0:02:57.4]}
4. Qxd4 {[%clk 0:02:53.2]} 4... Nf6 {[%clk 0:02:57.4]} 5. e4 {[%clk 0:02:53.2]}
5... Nc6 {[%clk 0:02:57.3]} 6. Qa4 {[%clk 0:02:52.7]} 6... Qc7 {[%clk
0:02:52.6]} 7. Nd5 {[%clk 0:02:26.8]} 7... Nxd5 {[%clk 0:02:47.1]} 8. exd5
{[%clk 0:02:27.7]} 8... Ne5 {[%clk 0:02:47.2]} 9. Bf4 {[%clk 0:02:21.2]} 9...
Bg7 {[%clk 0:02:46.1]} 10. Be2 {[%clk 0:02:15.7]} 10... O-O {[%clk 0:02:44.1]}
11. O-O {[%clk 0:02:13.8]} 11... Nxf3+ {[%clk 0:02:34.3]} 12. Bxf3 {[%clk
0:02:14.7]} 12... d6 {[%clk 0:02:34.2]} 13. c3 {[%clk 0:02:09]} 13... Bd7 {[%clk
0:02:31.1]} 14. Qc2 {[%clk 0:02:09.4]} 14... Bb5 {[%clk 0:02:29.2]} 15. Rfe1
{[%clk 0:02:09.8]} 15... Rfe8 {[%clk 0:02:27.5]} 16. Qd2 {[%clk 0:02:10.2]}
16... a5 {[%clk 0:02:22]} 17. Rac1 {[%clk 0:02:08.7]} 17... a4 {[%clk
0:02:20.1]} 18. c4 {[%clk 0:02:07.9]} 18... Bd7 {[%clk 0:02:15.4]} 19. c5 {[%clk
0:02:06.5]} 19... Qb8 {[%clk 0:02:02.6]} 20. c6 {[%clk 0:01:59.1]} 20... Bc8
{[%clk 0:01:58.4]} 21. c7 {[%clk 0:01:48.4]} 21... Qa7 {[%clk 0:01:56.6]} 22.
Bxd6 {[%clk 0:01:49]} 22... Bf8 {[%clk 0:01:47.7]} 23. Bc5 {[%clk 0:01:41.8]}
23... Qa6 {[%clk 0:01:43.9]} 24. d6 {[%clk 0:01:35.6]} 24... Qb5 {[%clk
0:01:19.7]} 25. dxe7 {[%clk 0:01:05]} 25... Bg7 {[%clk 0:01:16]} 26. Qd8 {[%clk
0:01:04]} 26... Bd7 {[%clk 0:01:13.4]} 27. Bxb7 {[%clk 0:00:46.8]} 27... Qxb7
{[%clk 0:01:08.5]} 28. Qxd7 {[%clk 0:00:41]} 28... Qxb2 {[%clk 0:01:04.3]} 29.
Ba3 {[%clk 0:00:12.7]} 29... Qb7 {[%clk 0:00:57.5]} 30. Qxe8+ {[%clk 0:00:03.9]}
30... Rxe8 {[%clk 0:00:56.2]} 31. c8=Q {[%clk 0:00:04.8]} 31... Rxc8 {[%clk
0:00:53.3]} 32. Rxc8+ {[%clk 0:00:05.7]} 32... Qxc8 {[%clk 0:00:52.8]} 33. e8=Q+
{[%clk 0:00:06.6]} 33... Qxe8 {[%clk 0:00:34.4]} 34. Rxe8+ {[%clk 0:00:07.5]}
1-0

[Event "Late-Titled-Tuesday-Blitz-April-23-2024"]
[Site "Chess.com"]
[Date "2024.04.23"]
[Round "9"]
[White "MaxLeto"]
[Black "chess_sharparchitect"]
[Result "1-0"]
[WhiteElo "2423"]
[BlackElo "2246"]
[TimeControl "180+1"]
[EndTime "15:45:40 PDT"]
[Termination "MaxLeto won by resignation"]

1. g4 {[%clk 0:02:43]} 1... d5 {[%clk 0:02:58.7]} 2. Bg2 {[%clk 0:02:43.4]} 2...
Bxg4 {[%clk 0:02:57.4]} 3. c4 {[%clk 0:02:43.8]} 3... Nf6 {[%clk 0:02:30.2]} 4.
Qb3 {[%clk 0:02:39.5]} 4... Qc8 {[%clk 0:02:11.9]} 5. cxd5 {[%clk 0:02:38.4]}
5... c6 {[%clk 0:02:09.8]} 6. Nc3 {[%clk 0:02:36.1]} 6... e6 {[%clk 0:02:03.8]}
7. h3 {[%clk 0:01:51.7]} 7... Bh5 {[%clk 0:02:00.4]} 8. dxe6 {[%clk 0:01:49]}
8... Qxe6 {[%clk 0:01:59.9]} 9. Qxb7 {[%clk 0:01:46.9]} 9... Bc5 {[%clk
0:01:27.4]} 10. Qxa8 {[%clk 0:01:39.1]} 10... O-O {[%clk 0:01:28.3]} 11. Qb7
{[%clk 0:01:29.1]} 11... Qf5 {[%clk 0:01:16.2]} 12. Nf3 {[%clk 0:01:23.8]} 12...
Re8 {[%clk 0:01:09.7]} 13. Kf1 {[%clk 0:01:15.3]} 13... Nbd7 {[%clk 0:00:47.5]}
14. Qxc6 {[%clk 0:01:05.2]} 14... Re6 {[%clk 0:00:41.9]} 15. Qc8+ {[%clk
0:00:56.7]} 15... Re8 {[%clk 0:00:41.8]} 16. Qc7 {[%clk 0:00:42.7]} 16... Bb6
{[%clk 0:00:34.8]} 17. Qg3 {[%clk 0:00:36.2]} 17... Qc2 {[%clk 0:00:29.6]} 18.
Ne1 {[%clk 0:00:25.7]} 18... Qf5 {[%clk 0:00:21.3]} 19. Nf3 {[%clk 0:00:25.8]}
19... Qc2 {[%clk 0:00:20.9]} 20. d3 {[%clk 0:00:23.8]} 20... Nd5 {[%clk
0:00:15.1]} 21. Ne1 {[%clk 0:00:12.3]} 21... Bxe2+ {[%clk 0:00:12.8]} 22. Kg1
{[%clk 0:00:13]} 22... Nxc3 {[%clk 0:00:04.2]} 23. Nxc2 {[%clk 0:00:12]} 1-0

[Event "Late-Titled-Tuesday-Blitz-April-23-2024"]
[Site "Chess.com"]
[Date "2024.04.23"]
[Round "9"]
[White "yaguigor"]
[Black "Good_Knight_Kiss"]
[Result "1-0"]
[WhiteElo "2570"]
[BlackElo "2452"]
[TimeControl "180+1"]
[EndTime "15:45:42 PDT"]
[Termination "yaguigor won on time"]

1. Nf3 {[%clk 0:03:00.9]} 1... Nf6 {[%clk 0:02:59.2]} 2. c4 {[%clk 0:03:00.1]}
2... g6 {[%clk 0:02:59]} 3. Nc3 {[%clk 0:02:59.5]} 3... Bg7 {[%clk 0:02:58.7]}
4. e4 {[%clk 0:02:59.1]} 4... d6 {[%clk 0:02:58.8]} 5. d4 {[%clk 0:02:58.7]}
5... O-O {[%clk 0:02:58.6]} 6. Be2 {[%clk 0:02:58.2]} 6... e5 {[%clk 0:02:58]}
7. O-O {[%clk 0:02:57.3]} 7... Nc6 {[%clk 0:02:56.8]} 8. d5 {[%clk 0:02:56.6]}
8... Ne7 {[%clk 0:02:56.9]} 9. b4 {[%clk 0:02:56.2]} 9... a5 {[%clk 0:02:56.2]}
10. bxa5 {[%clk 0:02:55]} 10... c5 {[%clk 0:02:55.7]} 11. a4 {[%clk 0:02:52.1]}
11... Rxa5 {[%clk 0:02:54.2]} 12. Ra3 {[%clk 0:02:48.4]} 12... Ne8 {[%clk
0:02:51.7]} 13. Bd2 {[%clk 0:02:40.9]} 13... f5 {[%clk 0:02:43.9]} 14. Ng5
{[%clk 0:02:35.5]} 14... Nc7 {[%clk 0:02:35.7]} 15. Nb5 {[%clk 0:02:30.7]} 15...
Ra6 {[%clk 0:02:35.7]} 16. Nxc7 {[%clk 0:02:12.2]} 16... Qxc7 {[%clk 0:02:35.5]}
17. exf5 {[%clk 0:02:09.5]} 17... Nxf5 {[%clk 0:02:15.4]} 18. Rh3 {[%clk
0:01:59.5]} 18... h6 {[%clk 0:01:48.5]} 19. Ne6 {[%clk 0:01:58.5]} 19... Bxe6
{[%clk 0:01:47.4]} 20. dxe6 {[%clk 0:01:59.4]} 20... e4 {[%clk 0:01:13.6]} 21.
Bg4 {[%clk 0:01:53.6]} 21... h5 {[%clk 0:01:06.3]} 22. Bxf5 {[%clk 0:01:49.5]}
22... Rxf5 {[%clk 0:01:07.2]} 23. Rg3 {[%clk 0:01:42.2]} 23... Kh7 {[%clk
0:01:03.2]} 24. Bg5 {[%clk 0:01:33.1]} 24... Bf6 {[%clk 0:00:42.9]} 25. Bxf6
{[%clk 0:01:28.8]} 25... Rxf6 {[%clk 0:00:43.8]} 26. Qd5 {[%clk 0:01:27.8]}
26... Qe7 {[%clk 0:00:38.8]} 27. Rb1 {[%clk 0:01:25]} 27... b6 {[%clk
0:00:34.3]} 28. Rgb3 {[%clk 0:01:10.8]} 28... Rxe6 {[%clk 0:00:19]} 29. Rxb6
{[%clk 0:01:08.3]} 29... Rxb6 {[%clk 0:00:19.7]} 30. Rxb6 {[%clk 0:01:08.2]}
30... Kh6 {[%clk 0:00:16.9]} 31. Rb7 {[%clk 0:01:00.6]} 31... Qf6 {[%clk
0:00:15.4]} 32. h4 {[%clk 0:01:00.6]} 32... Qa1+ {[%clk 0:00:08.6]} 33. Kh2
{[%clk 0:00:58.1]} 33... Qe5+ {[%clk 0:00:08.7]} 34. Qxe5 {[%clk 0:00:57.3]}
34... dxe5 {[%clk 0:00:02.8]} 35. a5 {[%clk 0:00:55.6]} 35... Ra6 {[%clk
0:00:02.4]} 36. Rb5 {[%clk 0:00:54.9]} 36... Rc6 {[%clk 0:00:01.9]} 37. Rb6
{[%clk 0:00:53.9]} 37... Rc7 {[%clk 0:00:02.1]} 38. a6 {[%clk 0:00:53.8]} 38...
Ra7 {[%clk 0:00:02.4]} 39. Kg1 {[%clk 0:00:51]} 39... Kg7 {[%clk 0:00:02.2]} 40.
Rb7+ {[%clk 0:00:50.4]} 1-0

[Event "Late-Titled-Tuesday-Blitz-April-23-2024"]
[Site "Chess.com"]
[Date "2024.04.23"]
[Round "9"]
[White "GlavkonVVS"]
[Black "Zhigalko_Sergei"]
[Result "1-0"]
[WhiteElo "2672"]
[BlackElo "2873"]
[TimeControl "180+1"]
[EndTime "15:45:45 PDT"]
[Termination "GlavkonVVS won on time"]

1. c4 {[%clk 0:03:00.9]} 1... e5 {[%clk 0:02:58.2]} 2. Nc3 {[%clk 0:03:00.8]}
2... Nf6 {[%clk 0:02:58.8]} 3. g3 {[%clk 0:03:01]} 3... c6 {[%clk 0:02:59.1]} 4.
Bg2 {[%clk 0:03:01.1]} 4... d5 {[%clk 0:02:59.3]} 5. cxd5 {[%clk 0:03:01.7]}
5... cxd5 {[%clk 0:03:00.2]} 6. Qb3 {[%clk 0:03:01.8]} 6... Be6 {[%clk
0:02:42.3]} 7. Qxb7 {[%clk 0:03:00]} 7... Nbd7 {[%clk 0:02:42]} 8. Nxd5 {[%clk
0:02:56.4]} 8... Nxd5 {[%clk 0:02:09.4]} 9. Bxd5 {[%clk 0:02:55.8]} 9... Rb8
{[%clk 0:02:09.8]} 10. Qc6 {[%clk 0:02:48.5]} 10... Rc8 {[%clk 0:02:09.2]} 11.
Qb7 {[%clk 0:02:47.3]} 11... Rc7 {[%clk 0:01:34.2]} 12. Qa8 {[%clk 0:02:39.1]}
12... Bxd5 {[%clk 0:01:21.6]} 13. Qxd5 {[%clk 0:02:38.6]} 13... Qc8 {[%clk
0:01:22.5]} 14. Kd1 {[%clk 0:02:30.3]} 14... Be7 {[%clk 0:01:22.5]} 15. Nf3
{[%clk 0:02:23.4]} 15... O-O {[%clk 0:01:22.4]} 16. d3 {[%clk 0:02:17.2]} 16...
Rd8 {[%clk 0:01:20.6]} 17. Bd2 {[%clk 0:02:10]} 17... Nc5 {[%clk 0:01:07.7]} 18.
Qxe5 {[%clk 0:01:52.4]} 18... Bf6 {[%clk 0:01:07.6]} 19. Qf4 {[%clk 0:01:49.3]}
19... Bxb2 {[%clk 0:00:36.6]} 20. Rb1 {[%clk 0:01:48.7]} 20... Bf6 {[%clk
0:00:34.1]} 21. Ba5 {[%clk 0:01:39.9]} 21... Nxd3 {[%clk 0:00:13]} 22. Qxc7
{[%clk 0:01:32.7]} 22... Nxf2+ {[%clk 0:00:03.8]} 23. Ke1 {[%clk 0:01:32.3]}
23... Nxh1 {[%clk 0:00:02.7]} 24. Qxc8 {[%clk 0:01:20.2]} 24... Rxc8 {[%clk
0:00:03.6]} 25. Kf1 {[%clk 0:01:19.6]} 25... h6 {[%clk 0:00:04.2]} 26. Kg2
{[%clk 0:01:19.2]} 26... Rc2 {[%clk 0:00:03.5]} 27. Bd2 {[%clk 0:01:16.9]} 27...
Nxg3 {[%clk 0:00:02.8]} 28. hxg3 {[%clk 0:01:16.8]} 28... Rxa2 {[%clk
0:00:03.7]} 29. Kf2 {[%clk 0:01:16.2]} 29... a5 {[%clk 0:00:03.3]} 30. Be3
{[%clk 0:01:16.3]} 30... a4 {[%clk 0:00:03.5]} 31. Rb8+ {[%clk 0:01:16.6]} 31...
Kh7 {[%clk 0:00:03.5]} 32. Rb7 {[%clk 0:01:17.3]} 32... a3 {[%clk 0:00:02.4]}
33. Ra7 {[%clk 0:01:12.6]} 33... Kg6 {[%clk 0:00:02.2]} 34. Bd4 {[%clk
0:01:12.1]} 34... Bxd4+ {[%clk 0:00:02.5]} 35. Nxd4 {[%clk 0:01:12.4]} 35... Ra1
{[%clk 0:00:03]} 36. Nb5 {[%clk 0:01:12.5]} 36... a2 {[%clk 0:00:03.1]} 37. Nc3
{[%clk 0:01:12.9]} 37... Rc1 {[%clk 0:00:03.5]} 38. Nxa2 {[%clk 0:01:13.2]}
38... Rc4 {[%clk 0:00:03.7]} 39. Ra6+ {[%clk 0:01:12.1]} 39... f6 {[%clk
0:00:04]} 40. Ra3 {[%clk 0:01:11.2]} 40... h5 {[%clk 0:00:04.3]} 41. Nc3 {[%clk
0:01:11.4]} 41... h4 {[%clk 0:00:04.9]} 42. gxh4 {[%clk 0:01:10.9]} 42... Rxh4
{[%clk 0:00:05.8]} 43. Ra5 {[%clk 0:01:09]} 43... Rh2+ {[%clk 0:00:05.6]} 44.
Kf3 {[%clk 0:01:08.8]} 44... Rh3+ {[%clk 0:00:05.9]} 45. Kf4 {[%clk 0:01:08.2]}
45... Rxc3 {[%clk 0:00:06.8]} 46. e4 {[%clk 0:01:08.7]} 46... Rh3 {[%clk
0:00:06.6]} 47. Ra7 {[%clk 0:01:08.1]} 47... Rh4+ {[%clk 0:00:06.3]} 48. Kf3
{[%clk 0:01:08.4]} 1-0